bitfinex-derivatives/quotes_SOLF0:USTF0_20250924
["timestamp","ask_amount","ask_price","bid_price","bid_amount"]
[1758735311700,3.26032652,215.01,214.96,11.5746]
[1758735311904,7.65,215.0,214.96,11.5746]
[1758735312203,7.65,215.0,214.97,7.39]
[1758735312595,7.65,215.0,214.94,2.1337153]
[1758735312596,7.65,214.98,214.94,4.185]
[1758735312802,7.65,214.99,214.94,4.185]
[1758735313001,7.65,214.99,214.92,9.5237153]
[1758735313002,7.65,215.0,214.95,4.1847]
[1758735313197,10.91039031,214.99,214.96,7.39]
[1758735313396,2.1337153,215.01,214.95,4.1847]
[1758735313598,7.65,214.99,214.95,11.5747]
[1758735313798,7.65,215.0,214.95,11.5747]
[1758735314001,10.90181833,214.99,214.95,11.5747]
[1758735314200,2.1337153,215.01,214.95,11.5747]
[1758735314502,7.65,214.99,214.95,11.5747]
[1758735314805,2.1337153,215.01,214.95,7.39]
[1758735315000,7.65,214.99,214.95,7.39]
[1758735315200,10.90177178,214.98,214.91,7.39]
[1758735315402,2.1337153,214.96,214.88,2.1337153]
[1758735315599,9.7837153,214.96,214.92,7.39]
[1758735315800,7.65,214.95,214.92,7.39]
[1758735316001,7.65,214.95,214.91,4.1856]
[1758735316198,2.1337153,214.96,214.91,4.1856]
[1758735316400,9.7837153,214.98,214.92,11.5753]
[1758735316605,3.2522192,214.97,214.93,7.39]
[1758735316803,7.65,214.97,214.93,7.39]
[1758735316998,7.65,215.02,214.91,74.6334153]
[1758735317200,5.3853877,215.01,214.92,7.39]
[1758735317402,3.2516724,215.0,214.92,7.39]
[1758735318104,3.2516724,215.0,214.96,7.39]
[1758735318105,7.65,214.99,214.96,7.39]
[1758735318805,9.7837153,214.99,214.96,7.39]
[1758735319405,7.65,214.97,214.93,11.5752]
[1758735319710,7.65,214.97,214.94,7.39]
[1758735319904,9.7837153,214.97,214.94,7.39]
[1758735320310,2.1337153,214.97,214.94,7.39]
[1758735321708,9.7837153,214.97,214.94,7.39]
[1758735322411,2.1337153,214.99,214.9,7.39]
[1758735322614,3.25497796,214.98,214.9,7.39]
[1758735322912,3.25497796,214.97,214.95,7.39]
[1758735323206,7.65,214.98,214.95,7.39]
[1758735323512,3.25609673,214.97,214.95,7.39]
[1758735323706,7.65,214.98,214.95,7.39]
[1758735323906,13.20981203,214.97,214.93,7.88]
[1758735324210,7.82,214.96,214.93,7.88]
[1758735324410,3.25713583,214.95,214.9,4.1857]
[1758735324615,11.07736504,214.94,214.9,12.0657]
[1758735324816,2.1337153,214.95,214.9,7.88]
[1758735324817,11.07736504,214.93,214.9,7.88]
[1758735325110,11.07736504,214.93,214.85,2.1337153]
[1758735325111,11.07736504,214.92,214.88,12.0662]
[1758735325311,3.25841879,214.91,214.88,12.0662]
[1758735325509,7.82,214.92,214.89,7.88]
[1758735325709,3.25841879,214.91,214.89,7.88]
[1758735325909,7.82,214.92,214.89,7.88]
[1758735326313,3.25880464,214.91,214.89,7.88]
[1758735326513,7.82,214.92,214.89,7.88]
[1758735326707,3.25880464,214.91,214.89,7.88]
[1758735326907,9.9537153,214.93,214.86,12.0666]
[1758735327108,3.25888446,214.92,214.86,12.0666]
[1758735327305,7.82,214.9,214.87,7.88]
[1758735327507,5.21186894,214.97,214.84,4.1869]
[1758735327708,65.0905,214.98,214.84,4.1869]
[1758735327709,9.9537153,214.91,214.84,4.1869]
[1758735327906,3.25993067,214.9,214.84,4.1869]
[1758735328614,3.25993067,214.9,214.86,7.88]
[1758735328809,9.9537153,214.95,214.85,67.2618153]
[1758735329016,3.25911351,214.94,214.86,7.88]
[1758735329204,3.25911351,214.93,214.9,4.1857]
[1758735329409,7.82,214.95,214.9,4.1857]
[1758735329612,3.25879518,214.94,214.9,4.1857]
[1758735329813,3.25879518,214.93,214.9,4.1857]
[1758735330014,7.82,214.95,214.91,7.88]
[1758735330206,3.25879397,214.94,214.87,67.2552153]
[1758735330514,3.25879397,214.93,214.88,7.88]
[1758735330711,2.1337153,214.97,214.92,4.1853]
[1758735330914,3.25887423,214.96,214.89,2.1337153]
[1758735331116,3.25887423,214.95,214.9,7.88]
[1758735331409,3.25887423,214.94,214.89,2.1337153]
[1758735331613,3.25887423,214.93,214.9,7.88]
[1758735331818,9.9537153,214.99,214.9,7.88]
[1758735332015,3.25882706,214.98,214.9,7.88]
[1758735332211,7.82,214.96,214.92,12.0654]
[1758735332416,3.25882706,214.95,214.92,12.0654]
[1758735332714,11.07882706,214.95,214.92,4.1854]
[1758735332912,3.25882706,214.94,214.92,4.1854]
[1758735333216,3.25882706,214.93,214.9,4.1858]
[1758735333416,7.82,214.96,214.9,12.0658]
[1758735333719,11.07873827,214.95,214.91,7.88]
[1758735334015,3.25873827,214.94,214.91,7.88]
[1758735334220,3.25873827,214.93,214.91,7.86]
[1758735334521,7.82,214.94,214.91,7.86]
[1758735334716,3.25869365,214.93,214.91,7.86]
[1758735334917,7.82,214.94,214.91,7.86]
[1758735335217,3.2587282,214.93,214.91,7.86]
[1758735335417,7.82,214.96,214.92,4.1854]
[1758735335612,11.078641,214.95,214.92,4.1854]
[1758735335816,3.258641,214.94,214.92,4.1854]
[1758735336118,7.82,214.95,214.92,4.1854]
[1758735336321,3.25841282,214.94,214.92,12.0654]
[1758735336622,7.82,214.95,214.92,12.0654]
[1758735336816,3.25833045,214.94,214.92,12.0654]
[1758735337015,7.82,214.95,214.92,12.0654]
[1758735337217,3.25841026,214.94,214.93,7.88]
[1758735341220,11.07841026,214.94,214.92,4.1854]
[1758735341521,7.82,214.96,214.92,12.0654]
[1758735341717,3.25908497,214.95,214.92,12.0654]
[1758735341917,3.25908497,214.94,214.92,12.0654]
[1758735342118,7.82,214.96,214.92,12.0654]
[1758735342318,3.25908497,214.95,214.92,12.0654]
[1758735342519,3.25908497,214.94,214.92,12.0654]
[1758735342718,7.82,214.96,214.92,12.0654]
[1758735342918,3.25917389,214.95,214.92,12.0654]
[1758735343219,3.25917389,214.94,214.92,12.0654]
[1758735343413,7.82,214.96,214.92,12.0654]
[1758735343616,3.25922233,214.95,214.92,12.0654]
[1758735343816,3.25922233,214.94,214.93,7.88]
[1758735344018,3.25922233,214.95,214.93,7.88]
[1758735344725,11.07922233,214.95,214.92,4.1854]
[1758735345023,3.25922233,214.94,214.92,12.0654]
[1758735345625,3.25922233,214.94,214.92,7.88]
[1758735347325,3.25922233,214.93,214.92,7.88]
[1758735347525,11.07922233,214.95,214.92,7.88]
[1758735347725,3.25922233,214.94,214.92,7.88]
[1758735347926,7.82,214.93,214.9,7.88]
[1758735348123,3.25922233,214.92,214.9,7.88]
[1758735348325,3.25922233,214.92,214.89,4.1859]
[1758735348626,3.25922233,214.92,214.9,7.88]
[1758735350028,3.25922233,214.91,214.9,7.88]
[1758735350226,3.25922233,214.92,214.9,7.88]
[1758735350427,3.25922233,214.91,214.9,7.88]
[1758735350923,3.25922233,214.92,214.9,7.88]
[1758735351228,3.25922233,214.91,214.89,12.0659]
[1758735351529,3.25922233,214.9,214.89,7.88]
[1758735351729,7.82,214.9,214.87,12.0663]
[1758735351930,3.25922233,214.89,214.87,12.0663]
[1758735352223,3.25922233,214.89,214.88,7.88]
[1758735352724,7.82,214.93,214.84,65.1312]
[1758735352934,3.27227378,214.92,214.86,7.88]
[1758735353133,3.27227378,214.91,214.86,7.88]
[1758735353332,2.1337153,214.95,214.86,7.88]
[1758735353532,3.2724459,214.94,214.86,7.88]
[1758735353729,3.2724459,214.93,214.91,4.1855]
[1758735354031,9.7337153,214.95,214.92,7.77]
[1758735354227,3.2724459,214.94,214.92,7.77]
[1758735354432,3.2724459,214.93,214.92,7.77]
[1758735354628,3.2724459,214.94,214.92,7.77]
[1758735354828,3.2724459,214.93,214.92,7.77]
[1758735355031,3.2724459,214.94,214.92,7.77]
[1758735357333,3.2724459,214.93,214.92,7.77]
[1758735357534,10.8724459,214.93,214.91,4.1855]
[1758735357732,3.2724459,214.92,214.91,4.1855]
[1758735358135,10.8724459,214.92,214.89,4.186]
[1758735358438,3.2724459,214.91,214.89,11.956]
[1758735358830,3.2724459,214.91,214.89,7.77]
[1758735359033,3.2724459,214.9,214.83,7.77]
[1758735360537,3.2724459,214.89,214.83,7.77]
[1758735360743,3.2724459,214.88,214.78,7.74]
[1758735361137,3.2724459,214.88,214.83,4.1871]
[1758735361333,10.7824459,214.87,214.84,7.74]
[1758735361536,3.2724459,214.86,214.78,7.74]
[1758735362237,7.51,214.85,214.81,4.1875]
[1758735362442,3.2724459,214.84,214.82,7.74]
[1758735362643,10.7824459,214.84,214.78,7.74]
[1758735362943,3.2724459,214.83,214.78,7.74]
[1758735363143,3.2724459,214.83,214.79,7.74]
[1758735363343,3.2724459,214.83,214.77,14.68614082]
[1758735363344,3.2724459,214.83,214.78,7.74]
[1758735363545,7.51,214.87,214.78,7.74]
[1758735363843,3.27396586,214.86,214.78,7.74]
[1758735364044,3.27396586,214.85,214.78,7.74]
[1758735364346,10.78396586,214.84,214.8,7.74]
[1758735364535,3.27396586,214.83,214.79,4.1879]
[1758735364739,7.51,214.84,214.8,7.74]
[1758735364939,3.27307046,214.83,214.79,4.1879]
[1758735365140,7.51,214.84,214.8,7.74]
[1758735365341,3.27193391,214.83,214.8,7.74]
[1758735365541,7.51,214.84,214.79,4.1879]
[1758735365741,3.2720767,214.83,214.8,4.1876]
[1758735365942,7.51,214.88,214.81,7.74]
[1758735366143,3.27204263,214.87,214.81,65.1401]
[1758735366342,7.51,214.92,214.82,7.74]
[1758735366543,3.27069581,214.91,214.82,7.74]
[1758735366840,7.51,214.92,214.82,7.74]
[1758735366841,3.27069581,214.9,214.82,7.74]
[1758735367042,3.27069581,214.89,214.82,7.74]
[1758735367237,3.27069581,214.88,214.86,7.74]
[1758735367443,3.3349403,214.94,214.84,7.74]
[1758735367649,7.51,214.95,214.86,7.74]
[1758735367650,3.27056307,214.93,214.86,7.74]
[1758735367843,3.27056307,214.92,214.91,7.74]
[1758735370555,5.21186894,215.01,214.85,65.1283]
[1758735370556,7.51,215.01,214.95,7.74]
[1758735372753,10.8449403,215.04,214.95,7.74]
[1758735373750,7.51,215.04,214.98,4.1842]
[1758735373951,3.3349403,215.07,214.97,7.74]
[1758735374950,3.3349403,215.17,215.04,7.74]
[1758735375151,7.51,215.19,215.04,7.74]
[1758735375152,7.51,215.19,215.05,65.0677]
[1758735375459,7.51,215.19,215.07,7.74]
[1758735375845,7.51,215.19,215.09,4.1821]
[1758735376045,7.51,215.19,215.1,7.74]
[1758735376449,11.6902,215.19,215.1,7.74]
[1758735377552,15.0251403,215.19,215.1,7.74]
[1758735378155,10.8449403,215.16,215.06,7.74]
[1758735378953,7.51,215.14,215.06,7.74]
[1758735379155,3.3349403,215.13,215.06,7.74]
[1758735380549,7.51,215.14,215.06,7.74]
[1758735382454,3.24634624,215.13,215.06,7.74]
[1758735382654,7.51,215.14,215.06,7.74]
[1758735382958,3.24642593,215.13,215.06,7.74]
[1758735383155,7.51,215.14,215.06,7.74]
[1758735383464,3.24516893,215.13,215.06,7.74]
[1758735383664,7.51,215.14,215.06,7.74]
[1758735383962,3.24520345,215.13,215.06,7.74]
[1758735384268,7.51,215.14,215.06,7.74]
[1758735384464,3.24412769,215.13,215.06,7.74]
[1758735384760,7.51,215.14,215.06,7.74]
[1758735387160,3.24186805,215.13,215.06,7.74]
[1758735387363,7.74,215.13,215.06,7.74]
[1758735387865,3.24180191,215.12,215.06,7.74]
[1758735388066,7.74,215.13,215.06,7.74]
[1758735388267,3.24168781,215.12,215.06,7.74]
[1758735388458,11.9213,215.13,215.06,7.74]
[1758735388663,3.24135165,215.12,215.06,7.74]
[1758735388863,11.9213,215.13,215.06,7.74]
[1758735389060,3.24143064,215.12,215.06,7.74]
[1758735389261,11.9213,215.13,215.06,7.74]
[1758735389462,3.24100232,215.12,215.06,7.74]
[1758735389663,7.74,215.1,215.02,7.66]
[1758735389964,3.24130747,215.09,214.99,7.66]
[1758735390167,3.24130747,215.08,214.99,7.66]
[1758735390464,7.74,215.1,214.99,7.66]
[1758735390665,3.24153974,215.09,214.99,7.66]
[1758735390865,7.74,215.1,214.99,7.66]
[1758735391064,3.24153974,215.09,214.99,7.66]
[1758735391366,4.1822,215.09,215.0,4.1838]
[1758735392264,7.42428859,215.08,215.0,4.1838]
[1758735392565,4.1825,215.08,215.0,4.1838]
[1758735393064,11.9219,215.1,214.99,7.66]
[1758735393968,7.74,215.1,215.03,7.66]
[1758735394163,11.0749403,215.14,215.03,7.66]
[1758735394368,3.24036761,215.13,215.03,7.66]
[1758735394561,15.2561403,215.14,215.04,4.183]
[1758735394766,3.24036528,215.13,215.05,7.66]
[1758735394969,3.24043652,215.12,215.05,7.66]
[1758735395169,11.0749403,215.11,215.05,7.66]
[1758735396764,7.74,215.11,215.05,7.66]
[1758735398071,11.9219,215.11,215.05,7.66]
[1758735399175,7.74,215.11,215.05,7.66]
[1758735399367,7.74,215.11,215.05,11.8427]
[1758735402374,7.74,215.11,214.99,3.3349403]
[1758735402572,3.24208594,215.1,215.0,7.66]
[1758735402775,7.74,215.1,215.0,7.66]
[1758735402972,4.1822,215.09,215.02,4.1833]
[1758735403780,4.1825,215.08,215.0,11.8438]
[1758735403978,3.3349403,215.11,215.0,11.8438]
[1758735404178,7.74,215.07,215.0,7.66]
[1758735404675,7.74,215.03,215.0,7.66]
[1758735405481,7.74,215.03,214.96,11.8446]
[1758735408182,3.25803313,215.02,214.96,11.8446]
[1758735408382,7.74,215.03,214.96,11.8446]
[1758735408586,3.25803255,215.02,214.96,11.8446]
[1758735408780,7.74,215.03,214.96,11.8446]
[1758735408981,3.25803372,215.02,214.96,11.8446]
[1758735409183,3.2605192,215.01,214.96,4.1846]
[1758735409386,11.9234,215.03,214.97,7.66]
[1758735409678,7.74,215.01,214.97,7.66]
[1758735409877,4.1834,215.03,214.97,7.66]
[1758735410080,7.74,215.1,214.98,7.66]
[1758735410278,3.26225733,215.09,214.98,7.66]
[1758735410481,3.26225733,215.08,214.98,7.66]
[1758735410691,3.26225733,215.07,214.98,7.66]
[1758735410881,3.26225733,215.06,214.98,7.66]
[1758735412592,3.26225733,215.06,214.98,11.8441]
[1758735412794,3.26225733,215.06,214.98,7.66]
[1758735414187,3.26225733,215.06,215.0,4.1839]
[1758735415284,3.26225733,215.05,215.01,7.71]
[1758735415483,4.1821,215.09,215.0,4.1839]
[1758735415484,3.26225733,215.04,215.0,4.1839]
[1758735415683,3.26225733,215.03,215.01,7.71]
[1758735415890,3.26225733,215.02,215.01,7.71]
[1758735416491,3.26225733,215.07,215.01,7.71]
[1758735416793,3.26225733,215.06,215.0,4.1839]
[1758735417091,3.26225733,215.05,215.0,4.1839]
[1758735417293,3.26225733,215.04,215.0,4.1839]
[1758735417483,3.26225733,215.03,215.01,7.71]
[1758735417682,3.26225733,215.02,215.01,7.71]
[1758735418095,3.27560926,215.07,215.02,7.71]
[1758735418395,3.3349403,215.22,215.09,7.71]
[1758735418597,10.99388966,215.21,215.09,7.71]
[1758735418792,3.27388966,215.2,215.09,7.71]
[1758735418992,3.27388966,215.19,215.09,7.71]
[1758735419190,3.27388966,215.18,215.11,4.1816]
[1758735419389,3.27388966,215.17,215.08,65.0586]
[1758735419595,3.27388966,215.16,215.1,7.71]
[1758735419793,3.27388966,215.15,215.07,7.71]
[1758735419995,3.27388966,215.14,215.07,7.71]
[1758735420196,3.27388966,215.13,215.07,7.71]
[1758735420499,7.65,215.22,215.09,7.5]
[1758735420694,5.40117048,215.21,215.12,7.5]
[1758735420887,3.27239845,215.2,215.12,7.5]
[1758735421092,3.27239845,215.19,215.12,7.5]
[1758735421291,3.27239845,215.18,215.12,7.5]
[1758735421592,3.27239845,215.17,215.11,7.5]
[1758735421803,3.27239845,215.16,215.11,7.5]
[1758735422097,3.27239845,215.15,215.11,7.5]
[1758735422296,3.27239845,215.14,215.13,7.5]
[1758735423201,9.77877203,215.22,215.13,7.5]
[1758735423398,7.65,215.2,215.13,7.5]
[1758735423594,5.39873263,215.19,215.12,4.1815]
[1758735423798,2.12877203,215.16,215.09,7.5]
[1758735424101,10.9199606,215.15,215.09,7.5]
[1758735424292,7.65,215.13,215.09,7.5]
[1758735424494,3.2699606,215.12,215.09,7.5]
[1758735425005,7.65,215.11,215.07,11.6823]
[1758735425199,3.2699606,215.1,215.07,11.6823]
[1758735426297,10.9199606,215.1,215.04,4.1829]
[1758735426502,3.2699606,215.09,215.05,7.5]
[1758735426801,7.65,215.11,215.05,11.6827]
[1758735427109,4.181,215.15,215.05,11.6827]
[1758735427110,9.77877203,215.15,215.05,7.5]
[1758735427303,3.27060715,215.14,215.05,7.5]
[1758735427502,3.27060715,215.13,215.1,4.1819]
[1758735427707,3.27060715,215.12,215.11,7.5]
[1758735428211,2.12877203,215.16,215.12,7.5]
[1758735428411,3.269816,215.15,215.09,7.5]
[1758735428706,3.269816,215.14,215.08,67.18637203]
[1758735428900,3.269816,215.13,215.08,2.12877203]
[1758735429106,9.77877203,215.19,215.09,7.5]
[1758735429303,2.12877203,215.16,215.09,7.5]
[1758735429509,3.26959454,215.15,215.09,7.5]
[1758735429709,3.26959454,215.14,215.08,9.62877203]
[1758735429902,3.26959454,215.13,215.09,7.5]
[1758735430099,2.12877203,215.16,215.09,7.5]
[1758735430411,3.26916434,215.15,215.11,7.5]
[1758735430706,3.26916434,215.14,215.11,7.5]
[1758735430909,3.26916434,215.13,215.09,11.682]
[1758735431110,2.12877203,215.16,215.09,11.682]
[1758735431310,3.26877332,215.15,215.09,7.5]
[1758735431510,3.26877332,215.14,215.12,4.1814]
[1758735431705,2.12877203,215.16,215.12,11.6814]
[1758735431905,3.26854088,215.15,215.08,65.0563]
[1758735432111,3.26854088,215.14,215.08,65.0563]
[1758735432308,2.12877203,215.16,215.09,7.5]
[1758735432511,3.26781598,215.15,215.09,7.5]
[1758735432705,3.26781598,215.14,215.08,65.0563]
[1758735432901,2.12877203,215.16,215.09,7.5]
[1758735433106,3.26781539,215.15,215.09,7.5]
[1758735433312,2.12877203,215.16,215.13,4.1812]
[1758735433508,3.26726831,215.15,215.13,4.1812]
[1758735433712,9.77877203,215.17,215.13,4.1812]
[1758735434116,7.65,215.16,215.13,4.1812]
[1758735436410,4.1794,215.23,215.15,4.1809]
[1758735436616,2.12877203,215.21,215.14,7.5]
[1758735437508,7.65,215.24,215.14,7.5]
[1758735437714,2.12877203,215.22,215.14,7.5]
[1758735438317,7.65,215.22,215.18,7.5]
[1758735440319,4.179,215.26,215.17,7.5]
[1758735440320,9.77877203,215.26,215.17,7.5]
[1758735440710,9.77877203,215.24,215.19,11.6801]
[1758735441012,9.77877203,215.24,215.14,7.5]
[1758735441213,7.65,215.24,215.16,4.1806]
[1758735441413,2.12877203,215.21,215.17,7.5]
[1758735442115,9.77877203,215.21,215.17,7.5]
[1758735445926,9.77877203,215.21,215.17,7.34]
[1758735446127,9.77877203,215.21,215.17,11.5204]
[1758735447527,7.91,215.25,215.18,11.5202]
[1758735447823,10.03877203,215.23,215.19,7.34]
[1758735448024,7.91,215.23,215.16,7.34]
[1758735448224,7.91,215.23,215.19,4.18]
[1758735448423,7.91,215.24,215.19,4.18]
[1758735448725,2.12877203,215.25,215.19,4.18]
[1758735448929,7.91,215.24,215.19,4.18]
[1758735449227,2.12877203,215.25,215.19,4.18]
[1758735449521,7.91,215.24,215.2,4.1798]
[1758735450018,2.12877203,215.25,215.2,4.1798]
[1758735450220,7.91,215.24,215.2,4.1798]
[1758735450420,2.12877203,215.25,215.2,4.1798]
[1758735450624,7.91,215.24,215.2,4.1798]
[1758735450927,7.91,215.24,215.2,11.5198]
[1758735451325,2.12877203,215.23,215.18,4.1803]
[1758735451621,7.91,215.22,215.18,4.1803]
[1758735452228,7.91,215.22,215.15,7.34]
[1758735452229,7.91,215.2,215.16,4.1807]
[1758735452428,7.91,215.2,215.16,11.5207]
[1758735453816,7.91,215.2,215.16,4.1807]
[1758735454020,7.91,215.2,215.17,7.34]
[1758735454220,2.12877203,215.21,215.16,4.1807]
[1758735454221,7.91,215.26,215.16,7.34]
[1758735454427,2.12877203,215.25,215.16,7.34]
[1758735455330,2.12877203,215.25,215.22,7.34]
[1758735456032,10.03877203,215.25,215.22,7.34]
[1758735457424,7.91,215.24,215.21,4.1796]
[1758735457616,10.03877203,215.25,215.18,7.34]
[1758735458829,2.12877203,215.23,215.18,7.34]
[1758735459028,10.03877203,215.23,215.14,7.34]
[1758735459426,10.03877203,215.23,215.19,4.18]
[1758735459728,7.91,215.22,215.19,4.18]
[1758735461029,7.91,215.22,215.17,4.1805]
[1758735461230,2.12877203,215.23,215.17,11.5205]
[1758735461431,10.03877203,215.23,215.17,11.5205]
[1758735462133,10.03877203,215.23,215.18,4.1802]
[1758735462333,2.12877203,215.23,215.15,7.34]
[1758735462932,2.12877203,215.23,215.2,4.1799]
[1758735463131,2.12877203,215.23,215.2,11.5199]
[1758735463327,2.12877203,215.23,215.14,65.0406]
[1758735463531,2.12877203,215.23,215.15,7.34]
[1758735464329,10.03877203,215.21,215.18,4.1803]
[1758735464930,10.03877203,215.21,215.15,11.5208]
[1758735465234,2.12877203,215.17,215.1,7.34]
[1758735465434,2.12877203,215.15,215.1,7.34]
[1758735465634,2.12877203,215.15,215.07,7.34]
[1758735466429,2.12877203,215.17,215.07,65.0607]
[1758735466637,2.12877203,215.17,215.08,2.12877203]
[1758735466837,2.12877203,215.17,215.09,7.34]
[1758735467037,10.03877203,215.17,215.13,4.1812]
[1758735467534,4.1795,215.23,215.09,65.0548]
[1758735467741,2.12877203,215.18,215.11,7.34]
[1758735468039,2.12877203,215.18,215.12,4.1815]
[1758735468237,2.12877203,215.16,215.12,4.1815]
[1758735468427,10.03877203,215.16,215.12,4.1815]
[1758735468633,10.03877203,215.16,215.12,11.5215]
[1758735468833,10.03877203,215.16,215.06,16.32096559]
[1758735468834,10.03877203,215.16,215.1,4.1819]
[1758735469739,10.03877203,215.16,215.08,7.34]
[1758735470936,10.03877203,215.16,215.09,4.1819]
[1758735472545,7.91,215.16,215.09,4.1819]
[1758735472842,2.12877203,215.15,215.08,7.34]
[1758735473239,7.91,215.16,215.08,7.34]
[1758735473440,2.12877203,215.14,215.08,7.34]
[1758735474650,20.76,215.2,215.05,4.1828]
[1758735474651,7.67,215.11,215.05,4.1828]
[1758735474948,7.67,215.11,215.04,7.38]
[1758735474949,2.12877203,215.1,215.04,7.38]
[1758735477963,2.12877203,215.1,215.04,11.5629]
[1758735478163,7.67,215.11,215.04,11.5629]
[1758735478364,9.79877203,215.11,215.04,11.5629]
[1758735479058,9.79877203,215.11,215.05,4.1827]
[1758735480359,9.79877203,215.11,215.04,7.38]
[1758735481765,7.79,215.15,215.05,7.74]
[1758735481961,2.12877203,215.13,215.06,4.1825]
[1758735482567,11.971,215.15,215.06,4.1825]
[1758735484365,4.1812,215.14,215.06,4.1825]
[1758735484568,7.79,215.15,215.05,7.74]
[1758735485363,4.1816,215.12,215.05,7.74]
[1758735485563,7.79,215.11,215.01,7.74]
[1758735486558,3.32865229,215.13,215.06,7.74]
[1758735486972,4.1806,215.17,215.08,4.1822]
[1758735487359,4.1806,215.17,215.08,7.74]
[1758735487658,7.79,215.14,215.08,7.74]
[1758735488268,7.79,215.14,215.03,7.74]
[1758735488468,7.79,215.14,215.05,4.1827]
[1758735488872,11.9711,215.14,215.06,4.1824]
[1758735489075,11.9711,215.14,215.06,11.9224]
[1758735490068,11.9711,215.14,215.07,4.1823]
[1758735490277,4.1807,215.16,215.05,3.32865229]
[1758735490468,7.79,215.18,215.06,7.74]
[1758735490773,7.79,215.18,215.09,4.182]
[1758735490774,4.1806,215.17,215.09,4.182]
[1758735491070,4.1806,215.17,215.09,11.922]
[1758735491463,7.79,215.15,215.09,11.922]
[1758735495277,4.1803,215.18,215.11,4.1817]
[1758735495479,4.1803,215.18,215.11,11.9217]
[1758735496871,4.1806,215.17,215.11,7.74]
[1758735497074,7.79,215.16,215.09,4.182]
[1758735497276,7.79,215.16,215.08,7.74]
[1758735497475,7.79,215.16,215.12,7.74]
[1758735497871,3.32865229,215.2,215.09,7.74]
[1758735498071,4.18,215.2,215.13,4.1811]
[1758735498371,4.18,215.2,215.13,11.9211]
[1758735498780,7.79,215.21,215.14,4.181]
[1758735499082,7.79,215.21,215.15,7.74]
[1758735501278,11.9698,215.21,215.15,7.74]
[1758735501683,7.79,215.21,215.12,4.1814]
[1758735501985,4.1803,215.19,215.11,7.74]
[1758735502172,7.79,215.18,215.11,7.74]
[1758735503577,11.9704,215.18,215.11,7.74]
[1758735504776,4.1799,215.2,215.12,7.7]
[1758735504983,7.25,215.22,215.12,7.7]
[1758735506082,11.4295,215.22,215.16,7.7]
[1758735506676,4.1791,215.25,215.16,7.7]
[1758735506872,7.25,215.26,215.16,7.7]
[1758735507872,4.1793,215.24,215.16,7.7]
[1758735509275,4.1793,215.24,215.17,4.1804]
[1758735509786,11.4288,215.26,215.17,4.1804]
[1758735510884,4.179,215.25,215.17,4.1804]
[1758735512876,4.179,215.25,215.18,4.1802]
[1758735514084,7.25,215.26,215.18,4.1802]
[1758735514788,4.1791,215.25,215.16,11.8806]
[1758735514990,7.25,215.24,215.16,11.8806]
[1758735517091,7.25,215.24,215.17,4.1803]
[1758735517292,7.25,215.24,215.16,7.7]
[1758735518293,7.25,215.24,215.18,4.1802]
[1758735522198,4.1786,215.27,215.19,4.18]
[1758735522398,7.25,215.26,215.19,4.18]
[1758735522994,7.25,215.26,215.2,4.1798]
[1758735523193,7.25,215.26,215.16,7.7]
[1758735523401,7.25,215.26,215.17,3.32865229]
[1758735523596,7.50655229,215.31,215.23,11.8793]